fUSD/lending_fUSD_20250112
["ID","MTS","AMOUNT","RATE_DAILY","PERIOD"]
[348587670,1736645432477,-8412.3,9.117e-05,2]
[348587671,1736645432487,-185.919,9.5e-05,2]
[348587672,1736645432497,-150.0,9.739e-05,2]
[348587673,1736645432506,-150.0,9.747e-05,2]
[348587674,1736645432516,-150.0,9.747e-05,2]
[348587675,1736645432526,-150.0,9.786e-05,2]
[348587676,1736645432536,-3594.94,9.786e-05,2]
[348587677,1736645432545,-500.0,9.8e-05,2]
[348587679,1736645432554,-150.0,9.829e-05,2]
[348587681,1736645432563,-150.0,9.83e-05,2]
[348587683,1736645432572,-150.0,9.831e-05,2]
[348587685,1736645432581,-1442.91,9.831e-05,2]
[348587687,1736645432591,-1873.69,9.831e-05,2]
[348587689,1736645432600,-150.99,9.831e-05,2]
[348587691,1736645432610,-128131.25,9.831e-05,2]
[348587693,1736645432619,-9976.34,9.831e-05,2]
[348587695,1736645432628,-291.9,9.831e-05,2]
[348587697,1736645432637,-809.23,9.831e-05,2]
[348587699,1736645432646,-9999.99,9.831e-05,2]
[348587701,1736645432656,-392.81,9.831e-05,2]
[348587703,1736645432672,-9999.99,9.831e-05,2]
[348587705,1736645432682,-420.0,9.873e-05,2]
[348587707,1736645432691,-713.5889,9.889e-05,2]
[348587709,1736645432700,-5000.0,9.889e-05,2]
[348587711,1736645432709,-150.0,9.89e-05,2]
[348587713,1736645432718,-150.0,9.893e-05,2]
[348587715,1736645432727,-150.0,9.897e-05,2]
[348587717,1736645432736,-4931.475982,9.9e-05,2]
[348587719,1736645432746,-150.0,9.908e-05,2]
[348587721,1736645432755,-150.0,9.927e-05,2]
[348587723,1736645432764,-150.0,9.943e-05,2]
[348587725,1736645432773,-281.8235,9.95e-05,2]
[348587727,1736645432782,-150.0,9.954e-05,2]
[348587729,1736645432791,-150.0,9.955e-05,2]
[348587731,1736645432801,-500.0,9.973e-05,2]
[348587733,1736645432810,-2215.94,9.984e-05,2]
[348587735,1736645432820,-1243.26,9.984e-05,2]
[348587737,1736645432828,-1249.50701809,9.984e-05,2]
[348587740,1736645432840,-1274.62298191,9.984e-05,2]
[348587742,1736645432850,-1833.01,9.984e-05,2]
[348587744,1736645432859,-500.0,9.984e-05,2]
[348587746,1736645432868,-501.47078525,9.984e-05,2]
[348587747,1736645432880,-378.66921475,9.984e-05,2]
[348587748,1736645432890,-1087.7,9.984e-05,2]
[348587749,1736645432899,-1456.11208181,9.984e-05,2]
[348587754,1736645438147,-1579.14791819,9.984e-05,2]
[348587755,1736645438157,-517.99,9.984e-05,2]
[348587756,1736645438167,-500.0,9.984e-05,2]
[348587757,1736645438176,-500.0,9.984e-05,2]
[348587758,1736645438186,-855.18,9.984e-05,2]
[348587759,1736645438196,-500.0,9.984e-05,2]
[348587760,1736645438207,-586.73465181,9.984e-05,2]
[348587761,1736645438219,-448.27534819,9.984e-05,2]
[348587762,1736645438230,-729.92,9.984e-05,2]
[348587763,1736645438240,-500.0,9.984e-05,2]
[348587764,1736645438250,-500.0,9.984e-05,2]
[348587765,1736645438260,-500.0,9.984e-05,2]
[348587766,1736645438269,-504.03513707,9.984e-05,2]
[348587767,1736645438278,-500.0,9.984e-05,2]
[348587768,1736645438288,-500.0,9.984e-05,2]
[348587769,1736645438297,-500.0,9.984e-05,2]
[348587770,1736645438306,-500.0,9.984e-05,2]
[348587771,1736645438315,-500.0,9.984e-05,2]
[348587772,1736645438324,-500.0,9.984e-05,2]
[348587773,1736645438333,-500.0,9.984e-05,2]
[348587774,1736645438343,-2198.19,9.984e-05,2]
[348587775,1736645438353,-500.0,9.985e-05,2]
[348587776,1736645438365,-899.05,9.985e-05,2]
[348587777,1736645438374,-2105.83803043,9.985e-05,2]
[348587778,1736645438415,-1020.93196957,9.985e-05,2]
[348587779,1736645438424,-1234.85,9.985e-05,2]
[348587780,1736645438433,-898.03667557,9.985e-05,2]
[348587786,1736645440217,-1768.31332443,9.985e-05,2]
[348587787,1736645440226,-7738.47,9.985e-05,2]
[348587788,1736645440235,-500.0,9.985e-05,2]
[348587789,1736645440244,-634.89,9.985e-05,2]
[348587790,1736645440254,-1058.04,9.985e-05,2]
[348587791,1736645440264,-2194.05,9.985e-05,2]
[348587792,1736645440273,-500.0,9.985e-05,2]
[348587793,1736645440282,-4115.12,9.985e-05,2]
[348587794,1736645440292,-500.0,9.985e-05,2]
[348587795,1736645440301,-663.51,9.985e-05,2]
[348587796,1736645440311,-1860.01,9.985e-05,2]
[348587797,1736645440320,-1288.18,9.985e-05,2]
[348587798,1736645440331,-377.27412006,9.986e-05,2]
[348587799,1736645440340,-450.30720717,9.986e-05,2]
[348587800,1736645440349,-500.0,9.986e-05,2]
[348587801,1736645440359,-500.0,9.986e-05,2]
[348587802,1736645440368,-500.0,9.986e-05,2]
[348587803,1736645440377,-500.0,9.986e-05,2]
[348587804,1736645440386,-529.37,9.986e-05,2]
[348587805,1736645440396,-917.03,9.986e-05,2]
[348587806,1736645440405,-612.56,9.986e-05,2]
[348587807,1736645440418,-691.11,9.986e-05,2]
[348587808,1736645440428,-500.0,9.986e-05,2]
[348587809,1736645440437,-500.0,9.986e-05,2]
[348587810,1736645440446,-500.0,9.986e-05,2]
[348587811,1736645440455,-500.0,9.986e-05,2]
[348587812,1736645440465,-500.0,9.986e-05,2]
[348587813,1736645440474,-500.0,9.986e-05,2]
[348587814,1736645440484,-500.0,9.986e-05,2]
[348587815,1736645440494,-716.96,9.986e-05,2]
[348587816,1736645440503,-500.0,9.986e-05,2]
[348587817,1736645440513,-500.0,9.986e-05,2]
[348587818,1736645440522,-500.0,9.986e-05,2]
[348587819,1736645440532,-727.56,9.986e-05,2]
[348587820,1736645440541,-500.0,9.986e-05,2]
[348587821,1736645440550,-500.0,9.986e-05,2]
[348587822,1736645440560,-502.56,9.986e-05,2]
[348587823,1736645440570,-1042.82,9.986e-05,2]
[348587824,1736645440580,-500.0,9.986e-05,2]
[348587825,1736645440589,-500.0,9.986e-05,2]
[348587826,1736645440598,-500.0,9.986e-05,2]
[348587827,1736645440607,-545.49229005,9.986e-05,2]
[348587828,1736645440617,-710.02,9.986e-05,2]
[348587829,1736645440627,-500.0,9.986e-05,2]
[348587830,1736645440636,-500.0,9.986e-05,2]
[348587831,1736645440645,-500.0,9.986e-05,2]
[348587832,1736645440655,-500.0,9.986e-05,2]
[348587833,1736645440665,-500.0,9.986e-05,2]
[348587834,1736645440675,-658.97,9.986e-05,2]
[348587835,1736645440684,-905.97,9.986e-05,2]
[348587836,1736645440693,-1581.29,9.986e-05,2]
[348587837,1736645440703,-500.0,9.986e-05,2]
[348587838,1736645440712,-500.0,9.986e-05,2]
[348587839,1736645440721,-500.0,9.986e-05,2]
[348587840,1736645440733,-164.67150598,9.986e-05,2]
[348587841,1736645440742,-665.1,9.986e-05,2]
[348587842,1736645440752,-500.0,9.986e-05,2]
[348587843,1736645440761,-500.0,9.986e-05,2]
[348587844,1736645440770,-3142.08,9.986e-05,2]
[348587845,1736645440779,-500.0,9.986e-05,2]
[348587846,1736645440789,-500.0,9.986e-05,2]
[348587847,1736645440798,-500.0,9.986e-05,2]
[348587848,1736645440807,-500.0,9.986e-05,2]
[348587849,1736645440816,-500.0,9.986e-05,2]
[348587850,1736645440826,-500.0,9.986e-05,2]
[348587851,1736645440835,-500.0,9.986e-05,2]
[348587852,1736645440843,-350.32987671,9.986e-05,2]
[348587853,1736645440852,-825.62,9.986e-05,2]
[348587854,1736645440863,-500.0,9.986e-05,2]
[348587855,1736645440872,-1553.35,9.986e-05,2]
[348587856,1736645440881,-500.0,9.986e-05,2]
[348587857,1736645440890,-500.0,9.986e-05,2]
[348587858,1736645440899,-500.0,9.986e-05,2]
[348587859,1736645440908,-1122.23,9.986e-05,2]
[348587860,1736645440918,-633.66,9.986e-05,2]
[348587861,1736645440927,-507.09,9.986e-05,2]
[348587862,1736645440935,-1136.039802,9.986e-05,2]
[348587863,1736645440945,-500.0,9.986e-05,2]
[348587864,1736645440953,-500.0,9.986e-05,2]
[348587865,1736645440963,-500.0,9.986e-05,2]
[348587866,1736645440971,-641.04,9.986e-05,2]
[348587867,1736645440982,-1129.986135,9.986e-05,2]
[348587868,1736645440991,-500.0,9.986e-05,2]
[348587869,1736645441002,-529.85,9.986e-05,2]
[348587870,1736645441011,-502.67,9.986e-05,2]
[348587871,1736645441022,-500.0,9.986e-05,2]
[348587872,1736645441033,-3217.29,9.986e-05,2]
[348587873,1736645441043,-640.59,9.986e-05,2]
[348587874,1736645441053,-500.0,9.986e-05,2]
[348587875,1736645441064,-500.0,9.986e-05,2]
[348587876,1736645441075,-1160.69,9.986e-05,2]
[348587877,1736645441085,-500.0,9.986e-05,2]
[348587878,1736645441096,-865.12,9.986e-05,2]
[348587879,1736645441105,-500.0,9.986e-05,2]
[348587880,1736645441115,-553.47,9.986e-05,2]
[348587881,1736645441125,-500.0,9.986e-05,2]
[348587882,1736645441137,-1518.05,9.986e-05,2]
[348587883,1736645441147,-525.65,9.986e-05,2]
[348587884,1736645441156,-500.0,9.986e-05,2]
[348587885,1736645441165,-500.0,9.986e-05,2]
[348587886,1736645441177,-500.0,9.986e-05,2]
[348587887,1736645441187,-500.0,9.986e-05,2]
[348587888,1736645441196,-500.0,9.986e-05,2]
[348587889,1736645441206,-687.74,9.986e-05,2]
[348587890,1736645441215,-3792.22,9.986e-05,2]
[348587891,1736645441224,-500.0,9.986e-05,2]
[348587892,1736645441235,-500.0,9.986e-05,2]
[348587893,1736645441244,-500.0,9.986e-05,2]
[348587894,1736645441253,-656.27,9.986e-05,2]
[348587895,1736645441262,-3520.05,9.986e-05,2]
[348587896,1736645441271,-2003.03,9.986e-05,2]
[348587897,1736645441281,-500.0,9.986e-05,2]
[348587898,1736645441290,-500.0,9.986e-05,2]
[348587899,1736645441299,-500.0,9.986e-05,2]
[348587900,1736645441310,-500.0,9.986e-05,2]
[348587901,1736645441320,-2131.91,9.986e-05,2]
[348587902,1736645441330,-500.0,9.986e-05,2]
[348587903,1736645441343,-500.0,9.986e-05,2]
[348587904,1736645441353,-500.0,9.986e-05,2]
[348587905,1736645441364,-638.14,9.986e-05,2]
[348587906,1736645441373,-500.0,9.986e-05,2]
[348587907,1736645441383,-500.0,9.986e-05,2]
[348587908,1736645441392,-500.0,9.986e-05,2]
[348587909,1736645441404,-567.14,9.986e-05,2]
[348587910,1736645441417,-945.26,9.986e-05,2]
[348587911,1736645441426,-500.0,9.986e-05,2]
[348587912,1736645441436,-584.93,9.986e-05,2]
[348587913,1736645441446,-500.0,9.986e-05,2]
[348587914,1736645441456,-510.79,9.987e-05,2]
[348587915,1736645441466,-500.65,9.987e-05,2]
[348587916,1736645441477,-500.0,9.987e-05,2]
[348587917,1736645441489,-500.0,9.987e-05,2]
[348587918,1736645441499,-558.18,9.987e-05,2]
[348587919,1736645441509,-500.0,9.987e-05,2]
[348587920,1736645441518,-500.0,9.987e-05,2]
[348587921,1736645441528,-500.0,9.987e-05,2]
[348587922,1736645441537,-500.0,9.987e-05,2]
[348587923,1736645441546,-500.0,9.987e-05,2]
[348587924,1736645441556,-500.0,9.987e-05,2]
[348587925,1736645441813,-500.0,9.987e-05,2]
[348587926,1736645441824,-500.0,9.987e-05,2]
[348587927,1736645441834,-500.0,9.987e-05,2]
[348587928,1736645441847,-500.0,9.987e-05,2]
[348587929,1736645441857,-500.0,9.987e-05,2]
[348587930,1736645441866,-601.56,9.987e-05,2]
[348587931,1736645441876,-500.0,9.987e-05,2]
[348587932,1736645441885,-519.36,9.987e-05,2]
[348587933,1736645441896,-500.0,9.987e-05,2]
[348587934,1736645441906,-731.19,9.987e-05,2]
[348587935,1736645441917,-1992.13,9.987e-05,2]
[348587936,1736645441927,-500.0,9.987e-05,2]
[348587937,1736645441936,-500.0,9.987e-05,2]
[348587938,1736645441946,-500.0,9.987e-05,2]
[348587939,1736645441956,-500.0,9.987e-05,2]
[348587940,1736645441966,-500.0,9.987e-05,2]
[348587941,1736645441975,-557.98,9.987e-05,2]
[348587942,1736645441986,-500.0,9.987e-05,2]
[348587943,1736645441996,-500.0,9.987e-05,2]
[348587944,1736645442008,-500.0,9.987e-05,2]
[348587945,1736645442018,-579.01,9.987e-05,2]
[348587946,1736645442028,-500.0,9.987e-05,2]
[348587947,1736645442037,-697.63,9.987e-05,2]
[348587948,1736645442047,-500.0,9.987e-05,2]
[348587949,1736645442056,-500.0,9.987e-05,2]
[348587950,1736645442066,-500.0,9.987e-05,2]
[348587951,1736645442076,-500.0,9.987e-05,2]
[348587952,1736645442086,-500.0,9.987e-05,2]
[348587953,1736645442099,-500.0,9.987e-05,2]
[348587954,1736645442109,-500.0,9.987e-05,2]
[348587955,1736645442119,-698.03,9.987e-05,2]
[348587956,1736645442129,-500.0,9.987e-05,2]
[348587957,1736645442140,-624.85,9.987e-05,2]
[348587958,1736645442151,-500.0,9.987e-05,2]
[348587959,1736645442164,-509.1,9.987e-05,2]
[348587960,1736645442175,-500.0,9.987e-05,2]
[348587961,1736645442185,-500.0,9.987e-05,2]
[348587962,1736645442194,-500.0,9.987e-05,2]
[348587963,1736645442205,-500.0,9.987e-05,2]
[348587964,1736645442215,-500.0,9.987e-05,2]
[348587965,1736645442226,-610.98,9.987e-05,2]
[348587966,1736645442237,-523.73,9.987e-05,2]
[348587967,1736645442247,-1173.32,9.987e-05,2]
[348587968,1736645442256,-672.13,9.987e-05,2]
[348587969,1736645442267,-500.0,9.987e-05,2]
[348587970,1736645442276,-737.75,9.987e-05,2]
[348587971,1736645442287,-500.0,9.987e-05,2]
[348587972,1736645442297,-1300.81,9.987e-05,2]
[348587973,1736645442308,-500.0,9.987e-05,2]
[348587974,1736645442321,-500.0,9.987e-05,2]
[348587975,1736645442331,-500.0,9.987e-05,2]
[348587976,1736645442341,-500.0,9.987e-05,2]
[348587977,1736645442351,-500.0,9.987e-05,2]
[348587978,1736645442361,-1642.14,9.987e-05,2]
[348587979,1736645442371,-500.0,9.987e-05,2]
[348587980,1736645442381,-500.0,9.987e-05,2]
[348587981,1736645442391,-973.42,9.987e-05,2]
[348587982,1736645442401,-500.0,9.987e-05,2]
[348587983,1736645442413,-728.01,9.987e-05,2]
[348587984,1736645442429,-667.84,9.987e-05,2]
[348587985,1736645442439,-936.98,9.987e-05,2]
[348587986,1736645442450,-500.0,9.987e-05,2]
[348587987,1736645442460,-829.73,9.987e-05,2]
[348587988,1736645442472,-1109.69,9.987e-05,2]
[348587989,1736645442484,-500.0,9.987e-05,2]
[348587990,1736645442494,-500.0,9.987e-05,2]
[348587991,1736645442504,-2321.8,9.987e-05,2]
[348587992,1736645442515,-500.0,9.987e-05,2]
[348587993,1736645442526,-2489.33,9.987e-05,2]
[348587994,1736645442536,-500.0,9.987e-05,2]
[348587995,1736645442546,-811.49,9.987e-05,2]
[348587996,1736645442556,-602.79,9.987e-05,2]
[348587997,1736645442565,-500.0,9.987e-05,2]
[348587998,1736645442576,-5892.85,9.987e-05,2]
[348587999,1736645442586,-1497.17,9.987e-05,2]
[348588000,1736645442596,-500.0,9.987e-05,2]
[348588001,1736645442606,-1175.85,9.987e-05,2]
[348588002,1736645442616,-567.41,9.987e-05,2]
[348588003,1736645442627,-3953.57,9.987e-05,2]
[348588004,1736645442637,-500.0,9.987e-05,2]
[348588005,1736645442646,-1362.24,9.987e-05,2]
[348588006,1736645442656,-500.0,9.987e-05,2]
[348588007,1736645442666,-2346.53,9.987e-05,2]
[348588008,1736645442675,-500.0,9.987e-05,2]
[348588009,1736645442686,-500.0,9.987e-05,2]
[348588010,1736645442695,-1630.98,9.987e-05,2]
[348588011,1736645442704,-614.13,9.987e-05,2]
[348588012,1736645442714,-500.0,9.987e-05,2]
[348588013,1736645442724,-500.0,9.987e-05,2]
[348588014,1736645442734,-500.0,9.988e-05,2]
[348588015,1736645442744,-647.74,9.988e-05,2]
[348588016,1736645442753,-562.38,9.988e-05,2]
[348588017,1736645442762,-876.75,9.988e-05,2]
[348588018,1736645442771,-629.6,9.988e-05,2]
[348588019,1736645442780,-1425.0,9.988e-05,2]
[348588020,1736645442790,-2081.02,9.988e-05,2]
[348588021,1736645442799,-500.0,9.989e-05,2]
[348588022,1736645442808,-500.0,9.989e-05,2]
[348588023,1736645442817,-500.0,9.989e-05,2]
[348588024,1736645442827,-500.0,9.989e-05,2]
[348588025,1736645442836,-500.0,9.989e-05,2]
[348588026,1736645442845,-500.0,9.989e-05,2]
[348588027,1736645442855,-500.0,9.989e-05,2]
[348588028,1736645442865,-500.0,9.989e-05,2]
[348588029,1736645442875,-500.0,9.989e-05,2]
[348588030,1736645442884,-500.0,9.989e-05,2]
[348588031,1736645442894,-500.0,9.989e-05,2]
[348588032,1736645442905,-500.0,9.989e-05,2]
[348588033,1736645442914,-500.0,9.989e-05,2]
[348588034,1736645442923,-500.0,9.989e-05,2]
[348588036,1736645442932,-500.0,9.989e-05,2]
[348588037,1736645442942,-500.0,9.989e-05,2]
[348588038,1736645442952,-500.0,9.989e-05,2]
[348588039,1736645442962,-500.0,9.989e-05,2]
[348588040,1736645442971,-500.0,9.989e-05,2]
[348588041,1736645442981,-500.0,9.989e-05,2]
[348588042,1736645442990,-500.0,9.989e-05,2]
[348588043,1736645443000,-500.0,9.989e-05,2]
[348588044,1736645443009,-500.0,9.989e-05,2]
[348588045,1736645443018,-500.0,9.989e-05,2]
[348588046,1736645443028,-500.0,9.989e-05,2]
[348588047,1736645443037,-500.0,9.989e-05,2]
[348588049,1736645443046,-500.0,9.989e-05,2]
[348588051,1736645443055,-500.0,9.989e-05,2]
[348588053,1736645443064,-500.0,9.989e-05,2]
[348588054,1736645443073,-3465.24,9.989e-05,2]
[348588055,1736645443083,-500.0,9.989e-05,2]
[348588056,1736645443092,-1356.35,9.989e-05,2]
[348588057,1736645443101,-500.0,9.989e-05,2]
[348588058,1736645443110,-500.0,9.989e-05,2]
[348588059,1736645443119,-500.0,9.989e-05,2]
[348588060,1736645443127,-500.0,9.989e-05,2]
[348588061,1736645443136,-500.0,9.989e-05,2]
[348588062,1736645443146,-605.48,9.989e-05,2]
[348588063,1736645443155,-500.0,9.989e-05,2]
[348588065,1736645443163,-500.0,9.989e-05,2]
[348588067,1736645443172,-500.0,9.989e-05,2]
[348588069,1736645443181,-500.0,9.989e-05,2]
[348588071,1736645443190,-500.0,9.989e-05,2]
[348588073,1736645443199,-551.17,9.989e-05,2]
[348588075,1736645443207,-500.0,9.989e-05,2]
[348588077,1736645443217,-534.98,9.989e-05,2]
[348588079,1736645443226,-500.0,9.989e-05,2]
[348588081,1736645443235,-500.0,9.989e-05,2]
[348588082,1736645443244,-636.56,9.989e-05,2]
[348588084,1736645443253,-500.0,9.989e-05,2]
[348588085,1736645443263,-500.0,9.989e-05,2]
[348588086,1736645443272,-500.0,9.989e-05,2]
[348588087,1736645443280,-500.0,9.989e-05,2]
[348588088,1736645443290,-798.09,9.989e-05,2]
[348588089,1736645443299,-500.0,9.989e-05,2]
[348588090,1736645443307,-837.59,9.989e-05,2]
[348588091,1736645443316,-500.0,9.989e-05,2]
[348588092,1736645443327,-880.24,9.989e-05,2]
[348588093,1736645443336,-708.94,9.989e-05,2]
[348588094,1736645443345,-500.0,9.989e-05,2]
[348588095,1736645443354,-784.73,9.989e-05,2]
[348588096,1736645443364,-500.0,9.989e-05,2]
[348588097,1736645443373,-500.0,9.989e-05,2]
[348588098,1736645443382,-500.0,9.989e-05,2]
[348588099,1736645443391,-531.79,9.989e-05,2]
[348588100,1736645443400,-500.0,9.989e-05,2]
[348588101,1736645443411,-500.0,9.989e-05,2]
[348588102,1736645443421,-500.0,9.989e-05,2]
[348588103,1736645443430,-1220.88,9.989e-05,2]
[348588104,1736645443439,-500.0,9.989e-05,2]
[348588105,1736645443448,-1407.59,9.989e-05,2]
[348588106,1736645443457,-1671.65,9.989e-05,2]
[348588107,1736645443467,-1321.52,9.989e-05,2]
[348588108,1736645443476,-1125.72568964,9.989e-05,2]
[348588109,1736645443517,-381.28266465,9.989e-05,2]
[348588110,1736645443528,-408.34687771,9.989e-05,2]
[348588111,1736645443539,-717.70335969,9.989e-05,2]
[348588112,1736645443608,-1051.07140831,9.989e-05,2]
[348588113,1736645443618,-1391.51,9.989e-05,2]
[348588114,1736645443627,-2299.99,9.989e-05,2]
[348588115,1736645443636,-248.05859169,9.989e-05,2]
[348588116,1736645443647,-251.94140831,9.989e-05,2]
[348588117,1736645443656,-609.33,9.989e-05,2]
[348588118,1736645443665,-1439.6,9.989e-05,2]
[348588119,1736645443675,-1210.41,9.989e-05,2]
[348588120,1736645443684,-1000.0,9.991e-05,2]
[348588121,1736645443694,-588.37,9.991e-05,2]
[348588122,1736645443703,-500.0,9.991e-05,2]
[348588123,1736645443712,-1700.06,9.991e-05,2]
[348588124,1736645443721,-306.52592596,9.991e-05,2]
[348588125,1736645444309,-429.93787537,9.991e-05,2]
[348588126,1736645444320,-598.40619867,9.991e-05,2]
[348588127,1736645444330,-433.67867636,9.992e-05,2]
[348588128,1736645444339,-3032.62866882,9.993e-05,2]
[348588129,1736645444349,-409.46069801,9.993e-05,2]
[348588130,1736645444358,-199.93968851,9.999e-05,3]
[348588131,1736645444368,-500.0,9.999e-05,2]
[348588132,1736645444377,-500.0,9.999e-05,2]
[348588133,1736645444386,-500.0,9.999e-05,2]
[348588134,1736645444396,-500.0,9.999e-05,2]
[348588135,1736645444406,-500.0,9.999e-05,2]
[348588136,1736645444421,-500.0,9.999e-05,2]
[348588137,1736645444431,-558.35,9.999e-05,2]
[348588138,1736645444441,-500.0,9.999e-05,2]
[348588139,1736645444450,-500.0,9.999e-05,2]
[348588140,1736645444460,-500.0,9.999e-05,2]
[348588141,1736645444471,-500.0,9.999e-05,2]
[348588142,1736645444480,-500.0,9.999e-05,2]
[348588143,1736645444489,-500.0,9.999e-05,2]
[348588144,1736645444499,-500.0,9.999e-05,2]
[348588145,1736645444509,-500.0,9.999e-05,2]
[348588146,1736645444519,-500.0,9.999e-05,2]
[348588147,1736645444528,-500.0,9.999e-05,2]
[348588148,1736645444538,-500.0,9.999e-05,2]
[348588149,1736645444547,-500.0,9.999e-05,2]
[348588150,1736645444557,-500.0,9.999e-05,2]
[348588151,1736645444566,-500.0,9.999e-05,2]
[348588152,1736645444576,-500.0,9.999e-05,2]
[348588153,1736645444585,-500.0,9.999e-05,2]
[348588154,1736645444594,-500.0,9.999e-05,2]
[348588155,1736645444604,-500.0,9.999e-05,2]
[348588156,1736645444613,-500.0,9.999e-05,2]
[348588157,1736645444622,-500.0,9.999e-05,2]
[348588158,1736645444632,-522.68,9.999e-05,2]
[348588159,1736645444641,-500.0,9.999e-05,2]
[348588160,1736645444650,-500.0,9.999e-05,2]
[348588161,1736645444659,-500.0,9.999e-05,2]
[348588162,1736645444668,-500.0,9.999e-05,2]
[348588163,1736645444678,-500.0,9.999e-05,2]
[348588164,1736645444687,-500.0,9.999e-05,2]
[348588165,1736645444697,-500.0,9.999e-05,2]
[348588166,1736645444706,-500.0,9.999e-05,2]
[348588167,1736645444715,-500.0,9.999e-05,2]
[348588168,1736645444724,-500.0,9.999e-05,2]
[348588169,1736645444734,-500.0,9.999e-05,2]
[348588170,1736645444743,-430.10842665,9.999e-05,2]
[348588171,1736645444752,-500.0,9.999e-05,2]
[348588172,1736645444761,-500.0,9.999e-05,2]
[348588173,1736645444771,-500.0,9.999e-05,2]
[348588174,1736645444780,-500.0,9.999e-05,2]
[348588175,1736645444789,-500.0,9.999e-05,2]
[348588176,1736645444799,-500.0,9.999e-05,2]
[348588177,1736645444808,-500.0,9.999e-05,2]
[348588178,1736645444817,-500.0,9.999e-05,2]
[348588179,1736645444826,-500.0,9.999e-05,2]
[348588180,1736645444835,-219.69037647,9.999e-05,2]
[348588181,1736645444844,-500.0,9.999e-05,2]
[348588182,1736645444853,-500.0,9.999e-05,2]
[348588183,1736645444863,-500.0,9.999e-05,2]
[348588184,1736645444872,-500.0,9.999e-05,2]
[348588185,1736645444881,-500.0,9.999e-05,2]
[348588186,1736645444890,-500.0,9.999e-05,2]
[348588187,1736645444899,-500.0,9.999e-05,2]
[348588188,1736645444908,-1156.638,9.999e-05,2]
[348588189,1736645444917,-500.0,9.999e-05,2]
[348588190,1736645444926,-500.0,9.999e-05,2]
[348588191,1736645444936,-500.0,9.999e-05,2]
[348588192,1736645444945,-500.0,9.999e-05,2]
[348588193,1736645444954,-607.74,9.999e-05,2]
[348588194,1736645444963,-500.0,9.999e-05,2]
[348588195,1736645444972,-621.14,9.999e-05,2]
[348588196,1736645444981,-500.0,9.999e-05,2]
[348588197,1736645444991,-500.0,9.999e-05,2]
[348588198,1736645445000,-500.0,9.999e-05,2]
[348588199,1736645445012,-500.0,9.999e-05,2]
[348588200,1736645445022,-500.0,9.999e-05,2]
[348588201,1736645445031,-500.0,9.999e-05,2]
[348588202,1736645445040,-500.0,9.999e-05,2]
[348588203,1736645445049,-500.0,9.999e-05,2]
[348588204,1736645445058,-500.0,9.999e-05,2]
[348588205,1736645445067,-500.0,9.999e-05,2]
[348588206,1736645445077,-500.0,9.999e-05,2]
[348588207,1736645445085,-500.0,9.999e-05,2]
[348588208,1736645445095,-380.78259933,9.999e-05,2]
[348588209,1736645445104,-500.0,9.999e-05,2]
[348588210,1736645445113,-500.0,9.999e-05,2]
[348588211,1736645445123,-500.0,9.999e-05,2]
[348588212,1736645445132,-500.0,9.999e-05,2]
[348588213,1736645445141,-500.0,9.999e-05,2]
[348588214,1736645445151,-461.66017647,9.999e-05,2]
[348588215,1736645445160,-500.0,9.999e-05,2]
[348588216,1736645445169,-500.0,9.999e-05,2]
[348588217,1736645445179,-500.0,9.999e-05,2]
[348588218,1736645445189,-500.0,9.999e-05,2]
[348588219,1736645445199,-566.41680199,9.999e-05,2]
[348588220,1736645445208,-500.0,9.999e-05,2]
[348588221,1736645445217,-500.0,9.999e-05,2]
[348588222,1736645445227,-500.0,9.999e-05,2]
[348588223,1736645445236,-500.0,9.999e-05,2]
[348588224,1736645445245,-500.0,9.999e-05,2]
[348588225,1736645445254,-500.0,9.999e-05,2]
[348588226,1736645445263,-500.0,9.999e-05,2]
[348588227,1736645445272,-500.0,9.999e-05,2]